Cogmind - Beta 15 @@@ ROGUE MODE // 2025.09.07 @ 09:47:38 Player: beans Result: Destroyed by G-50 Soldier with Heavy Laser Performance ------------- Evolutions (4) 2000 Regions Visited (8) 1600 Robots Destroyed (86) 430 Value Destroyed (2110) 2110 Prototype IDs (18) 360 Alien Tech Used (0) 0 Bonus (1100) 1100 TOTAL SCORE: 7600 Bonus ------- Follower Combat Kills 387 Registered with UFD 300 Met Optimus in HQ 500 Friendly Fire -87 Cogmind --------- Core Integrity 0/850 Matter 300/300 Energy 83/100 System Corruption 0% Temperature Cool (9) Movement Core (50) Location -6/Factory Parts ------- > --- POWER (1) -------- (None) > --- PROPULSION (4) --- (None) > --- UTILITY (8) ------ Improved Signal Interpreter Improved Terrain Scanner Surveybot 17 Chip Target Analyzer Makeshift Hacking Suite System Shield A0-MCA's Component Scanner > --- WEAPON (2) ------- (None) > --- INVENTORY (5) ---- Improved Cooling System Heavy Plasma Cannon Heavy Rocket Launcher Heavy Rocket Launcher Peak State ------------ > --- POWER ------------ Micro Fission Core > --- PROPULSION ------- Cooled Cesium-ion Thruster > --- UTILITY ---------- Improved Signal Interpreter Surveybot 17 Chip Target Analyzer Thermal Shield Makeshift Hacking Suite System Shield A0-MCA's Component Scanner > --- WEAPON ----------- Field Laser Heavy Laser > --- INVENTORY -------- Improved Cooling System Heavy Rocket Launcher Heavy Rocket Launcher [Rating: 54] Favorites ----------- Power Nuclear Core Power Core Nuclear Core Propulsion Armored Treads Treads Armored Treads Flight Unit Cooled Cesium-ion Thruster Utility Improved Signal Interpreter Device Improved Cooling System Storage High-capacity Matter Pod Processor Improved Signal Interpreter Hackware Hacking Suite Protection Improved Weapon Shielding Weapon Enhanced Autogun Energy Gun Plasma Rifle Energy Cannon Ion Cannon Ballistic Gun Enhanced Autogun Launcher Grenade Launcher Special Melee Weapon Datajack Build | -11 -10 -9 -9 -8 -8 -8 -8 -6 ------- Run | Yrd Mat Mat Min Mat Sto Rec Scr Fac Slots Evolved 8 | . . 2 . 2 . . . 4 Power . | . . . . . . . . . Propulsion 2 | . . . . . . . . 2 Utility 6 | . . 2 . 2 . . . 2 Weapon . | . . . . . . . . . Parts Attached 52 | 4 . . 3 11 13 . 9 12 Power 4 | . . . . 1 1 . 1 1 Engine . | . . . . . . . . . Core 4 | . . . . 1 1 . 1 1 Reactor . | . . . . . . . . . Propulsion 15 | 2 . . . 3 5 . 1 4 Treads 11 | 2 . . . 3 5 . 1 . Leg . | . . . . . . . . . Wheel . | . . . . . . . . . Hover . | . . . . . . . . . Flight 4 | . . . . . . . . 4 Utility 19 | . . . 2 4 4 . 5 4 Device 3 | . . . . . . . 1 2 Storage 1 | . . . . . 1 . . . Processor 7 | . . . . 3 . . 2 2 Hackware 3 | . . . . 1 . . 2 . Protection 5 | . . . 2 . 3 . . . Artifact . | . . . . . . . . . Weapon 14 | 2 . . 1 3 3 . 2 3 Energy Gun 3 | . . . . . . . 1 2 Energy Cannon 1 | . . . . . 1 . . . Ballistic Gun 6 | 2 . . . 2 2 . . . Ballistic Cannon . | . . . . . . . . . Launcher 3 | . . . 1 1 . . . 1 Special Weapon . | . . . . . . . . . Impact Weapon . | . . . . . . . . . Slashing Weapon . | . . . . . . . . . Piercing Weapon . | . . . . . . . . . Special Melee Weapon 1 | . . . . . . . 1 . Unidentified Prototypes 1 | . . . . . 1 . . . Corrupted Parts 1 | . . . . . . . 1 . System Corruption 1 | . . . . . . . 1 . Parts Lost 25 | . . 1 3 2 1 . 2 16 Power 3 | . . . . . . . 1 2 Propulsion 9 | . . . 2 1 . . 1 5 Utility 4 | . . . . . 1 . . 3 Weapon 9 | . . 1 1 1 . . . 6 Highest Loss Streak 9 | . . 1 3 1 1 . 2 9 To Critical Strikes 1 | . . . . 1 . . . . Average Backups 4 | . 2 4 3 4 4 4 4 3 Power . | . . . . . . . . . Propulsion . | . . . . . . . . . Utility 2 | . 2 3 3 2 2 3 2 1 Weapon 1 | . . 1 . 1 1 1 1 2 Tool/Special . | . . . . . . . . . Unused Backups 12 | . . . . . 5 1 3 3 Power . | . . . . . . . . . Propulsion . | . . . . . . . . . Utility 7 | . . . . . 4 . 3 . Weapon 5 | . . . . . 1 1 . 3 Tool/Special . | . . . . . . . . . Average Slot Usage (%) 88 | . 57 43 32 48 97 100 98 63 Core 7 | . . . . 4 9 9 8 3 Treads 16 | . 28 22 6 7 18 18 16 4 Storage 4 | . . . . . 1 9 7 2 Processor 22 | . . . . 6 27 27 26 24 Hackware 9 | . . . . 2 9 9 14 13 Protection 8 | . . . 11 18 14 9 3 . Ballistic Gun 15 | . 28 21 2 6 16 18 16 4 Peak Build Rating 54 | 4 4 4 5 22 33 31 44 54 Average Rating 28 | 2 4 3 4 11 29 31 36 40 On Entrance 15 | . 4 4 3 5 22 31 31 41 Naked Turns . | . . . . . . . . . Heaviest Build 24 | 3 3 3 13 20 24 19 19 15 Greatest Support 40 | 40 40 40 40 40 40 40 40 38 Greatest Overweight (x) 5 | . . . 4 5 . . . 1 Average Overweight (x) . | . . . 1 1 . . . . Largest Inventory Capacity 5 | 5 5 5 5 5 5 5 5 5 Average Capacity 5 | 5 5 5 5 5 5 5 5 5 Most Carried 5 | 2 4 4 5 5 5 5 5 5 Average Carried 4 | . 2 4 3 4 4 4 4 3 Final Capacity 5 | 5 5 5 5 5 5 5 5 5 Final Carried 5 | . 4 4 4 3 4 5 5 4 Class Distribution -------------------- 64% | Commander-Mutant 15% | Mutant 11% | Hacker-Mutant 8% | Scavenger-Mutant Dominant Class ---------------- Mutant | -10/Materials Mutant | -9/Materials Mutant | -9/Mines Mutant | -8/Materials Commander-Mutant | -8/Storage Commander-Mutant | -8/Recycling Commander-Mutant | -8/Scraptown Hacker-Mutant | -6/Factory Resources | -11 -10 -9 -9 -8 -8 -8 -8 -6 ----------- Run | Yrd Mat Mat Min Mat Sto Rec Scr Fac Matter Collected 2776 | 214 170 24 72 357 855 184 687 213 Remotely . | . . . . . . . . . Salvage Created 3542 | . 322 90 121 646 744 786 612 221 Parts 236 | . 23 4 13 51 63 36 36 10 Haulers Intercepted 6 | . 1 . . 2 3 . . . Recyclers Shooed 5 | . . 1 . 1 1 2 . . Parts Field Recycled . | . . . . . . . . . Retrieved Matter . | . . . . . . . . . Parts Self-Destructed . | . . . . . . . . . Prevented . | . . . . . . . . . Kills | -11 -10 -9 -9 -8 -8 -8 -8 -6 ------- Run | Yrd Mat Mat Min Mat Sto Rec Scr Fac Combat Hostiles Destroyed 45 | . 5 2 2 10 7 3 11 5 Guns 40 | . 5 2 . 8 6 3 11 5 Cannons 1 | . . . . . 1 . . . AOE 4 | . . . 2 2 . . . . Classes Destroyed 17 | . 5 . 3 3 2 . 4 . Worker 5 | . . . . 4 1 . . . Builder 9 | . 1 . 2 . 5 . . 1 Tunneler 2 | . . . 1 1 . . . . Hauler 6 | . 1 . . 2 3 . . . Recycler 13 | . . . 1 2 1 9 . . Mechanic 1 | . . . . . 1 . . . Operator 3 | . 1 . . 1 1 . . . Watcher 2 | . 2 . . . . . . . Swarmer 7 | . . . . 4 . . . 3 Grunt 11 | . 5 2 . 1 2 . . 1 Duelist 1 | . . . . . 1 . . . Sentry 12 | . . . 2 3 4 3 . . Hunter 3 | . . . . 2 . . . 1 Federalist 1 | . . . . . . . 1 . Explorer 3 | . . . . . . . 3 . Guru 2 | . . . . . . . 2 . Scrapper 5 | . . . . . . . 5 . Best Kill Streak 6 | . 4 1 6 6 3 5 3 3 Combat Bots Only 4 | . 2 1 2 4 1 1 3 3 Max Kills in Single Turn 2 | . 1 1 2 2 2 1 1 1 Gunslinging . | . . . . . . . . . Exploded 2 | . . . 1 2 . . . . Melee . | . . . . . . . . . Uniques/NPCs Destroyed . | . . . . . . . . . Combat | -11 -10 -9 -9 -8 -8 -8 -8 -6 -------- Run | Yrd Mat Mat Min Mat Sto Rec Scr Fac Hostile Shots Fired 425 | . 33 18 26 77 33 5 63 170 Missed 153 | . 10 5 12 23 11 1 19 72 Hits 272 | . 23 13 14 54 22 4 44 98 Melee 2 | . . . . . . . 2 . Projectile 270 | . 23 13 14 54 22 4 42 98 AOE 1 | . . . . . . . 1 . Critical Strikes 14 | . . 3 1 2 2 1 4 1 Damage Taken 4559 | . 252 188 261 738 367 225 856 1672 Core 1460 | . 46 33 82 164 73 39 173 850 Absorbed by Shields . | . . . . . . . . . Redirected to Shielding 87 | . . . . . 37 50 . . Core Remaining (%) 67 | 100 81 . 71 . . . 18 . Volleys Fired 352 | . 36 15 8 69 83 23 73 45 Largest 2 | . 2 2 2 2 2 2 2 2 Hottest 132 | . 40 40 50 45 60 50 100 132 Shots Fired 598 | . 72 30 9 71 164 46 140 66 Gun 581 | . 72 30 1 65 162 46 140 65 Cannon 2 | . . . . . 2 . . . Launcher 15 | . . . 8 6 . . . 1 Special . | . . . . . . . . . Kinetic 549 | . 72 30 1 65 162 46 133 40 Thermal 34 | . . . . . 2 . 7 25 Explosive 15 | . . . 8 6 . . . 1 Electromagnetic . | . . . . . . . . . Robot Hit Streak 18 | . 10 9 10 18 14 9 9 9 Robot Miss Streak 6 | . 3 2 . 2 3 1 6 5 Penetration Max . | . . . . . . . . . Secondary Targets 10 | . 2 . . . 3 . 3 2 Max Gunslinging Chain 1 | . 1 . . . 1 . 1 1 Shots Hit Robots 338 | . 42 19 5 52 83 31 70 36 Core Hits 148 | . 17 7 16 30 27 14 22 15 Critical Kills 1 | . . . . 1 . . . . Critical Parts Destroyed 2 | . 2 . . . . . . . Critical Strikes 3 | . 2 . . 1 . . . . Destroy 3 | . 2 . . 1 . . . . Melee Attacks 9 | . . . . . . . 9 . Impact . | . . . . . . . . . Slashing . | . . . . . . . . . Piercing . | . . . . . . . . . Sneak Attacks 4 | . . . . . . . 4 . Combat Hostiles . | . . . . . . . . . Follow-up Attacks . | . . . . . . . . . Damage Inflicted 5532 | . 442 205 259 938 1369 578 1021 720 Guns 4938 | . 442 205 . 716 1345 578 1021 631 Cannons 24 | . . . . . 24 . . . Explosions 570 | . . . 259 222 . . . 89 Melee . | . . . . . . . . . Ramming . | . . . . . . . . . Kinetic 4660 | . 442 205 . 716 1345 578 1000 374 Thermal 302 | . . . . . 24 . 21 257 Explosive 570 | . . . 259 222 . . . 89 Electromagnetic . | . . . . . . . . . Impact . | . . . . . . . . . Slashing . | . . . . . . . . . Piercing . | . . . . . . . . . Highest Corruption 3 | . . . . . . . 3 . Average Corruption 2 | . . . . . . . 2 . Corruption Purged . | . . . . . . . . . Corruption Blocked . | . . . . . . . . . Effects 6 | . . . . . . . 6 . Matter Fused 1 | . . . . . . . 1 . Heat Flow Errors 2 | . . . . . . . 2 . Parts Rejected 1 | . . . . . . . 1 . Data Loss (minor) 2 | . . . . . . . 2 . Overload Shots . | . . . . . . . . . Overflow Damage 13 | . . . . 13 . . . . Projectiles . | . . . . . . . . . Explosions 13 | . . . . 13 . . . . Melee . | . . . . . . . . . Knockbacks . | . . . . . . . . . Impact . | . . . . . . . . . Kinetic . | . . . . . . . . . Secondary . | . . . . . . . . . Self-Inflicted Damage 75 | . . . 45 . . . . 30 Shots 3 | . . . 2 . . . . 1 Rammed . | . . . . . . . . . Targets Rammed . | . . . . . . . . . Kicked . | . . . . . . . . . Crushed . | . . . . . . . . . Highest Temperature 260 | . 2 19 15 22 42 44 260 127 Average Temperature 24 | . 1 4 11 11 8 9 53 53 Received Heat Transfer 1437 | . 138 150 90 54 171 135 408 291 Siege Activations . | . . . . . . . . . Martial Activations . | . . . . . . . . . Shielding Activations . | . . . . . . . . . Robots Disrupted . | . . . . . . . . . Combat Hostiles . | . . . . . . . . . Robots Corrupted . | . . . . . . . . . Combat Hostiles . | . . . . . . . . . Parts Fried . | . . . . . . . . . Impact Corruptions . | . . . . . . . . . Robots Melted . | . . . . . . . . . Combat Hostiles . | . . . . . . . . . Parts Melted 3 | . . . . . . . 2 1 Heat Transferred 568 | . . . . . 37 . 50 481 Parts Sabotaged . | . . . . . . . . . Parts Stolen . | . . . . . . . . . Parts Stripped . | . . . . . . . . . Power Chain Reactions . | . . . . . . . . . Alert | -11 -10 -9 -9 -8 -8 -8 -8 -6 ------- Run | Yrd Mat Mat Min Mat Sto Rec Scr Fac Maximum Alert Level 1 | . . . . . 1 . . . Low Security (%) 83 | 100 100 100 100 100 64 100 . 100 Level 1 16 | . . . . . 35 . . . Level 2 . | . . . . . . . . . Level 3 . | . . . . . . . . . Level 4 . | . . . . . . . . . Level 5 . | . . . . . . . . . High Security . | . . . . . . . . . Max Security . | . . . . . . . . . Peak Influence 272 | . 57 45 86 178 272 90 . 110 Initial 82 | . . . 1 . 71 82 . . Average 67 | . 24 19 19 51 113 22 . 38 Influence Increases 1888 | . 152 65 101 372 692 210 . 296 Destroy 0b10 Robot/C 800 | . 100 40 40 200 240 80 . 100 Destroy 0b10 Robot/NC 205 | . 25 . 20 50 60 45 . 5 Destroy Leader 206 | . 26 10 . 64 86 . . 20 Allied During Kill 263 | . . . . . 184 79 . . Successful Hack 5 | . . . . . . 5 . . Disable Machine 90 | . . . . . 90 . . . Destroy Structure 79 | . 1 . 41 28 2 1 . 6 Lose Combat Pursuer 240 | . . 15 . 30 30 . . 165 Influence Decreases 1887 | . 152 60 106 202 650 422 . 295 Entered New Map 233 | . . . 4 . 99 130 . . Time Decay 1469 | . 152 50 102 182 521 292 . 170 Lost Part 165 | . . 10 . 20 10 . . 125 Lost Ally 20 | . . . . . 20 . . . Squads Dispatched 9 | . 2 . . 1 3 . . 3 Investigation 2 | . . . . 1 1 . . . Extermination 1 | . . . . . . . . 1 Reinforcement 6 | . 2 . . . 2 . . 2 Assault . | . . . . . . . . . Garrison . | . . . . . . . . . Intercept . | . . . . . . . . . Searches Triggered . | . . . . . . . . . Construction Impeded 1 | . . . . . . . . 1 Haulers Reinforced 1 | . . . . . . . . 1 Active Scanning Responses . | . . . . . . . . . Cargo Convoy Interrupts . | . . . . . . . . . Stealth | -11 -10 -9 -9 -8 -8 -8 -8 -6 --------- Run | Yrd Mat Mat Min Mat Sto Rec Scr Fac Distress Signals 3 | . 1 . . 1 1 . . . Communications Jammed . | . . . . . . . . . Distress Signals . | . . . . . . . . . Times Spotted 131 | . 15 4 2 19 34 2 32 23 Peak Tracking Total 9 | . 4 2 2 6 5 1 5 9 Tactical Retreats 7 | . . 1 . 1 1 . 1 3 Traps | -11 -10 -9 -9 -8 -8 -8 -8 -6 ------- Run | Yrd Mat Mat Min Mat Sto Rec Scr Fac Traps Triggered 1 | . . . . 1 . . . . Indirectly . | . . . . . . . . . Trap Hack Attempts . | . . . . . . . . . Triggered . | . . . . . . . . . Disarmed . | . . . . . . . . . Reprogrammed . | . . . . . . . . . Reused . | . . . . . . . . . Traps Extracted . | . . . . . . . . . Installed . | . . . . . . . . . Triggered . | . . . . . . . . . Machines | -11 -10 -9 -9 -8 -8 -8 -8 -6 ---------- Run | Yrd Mat Mat Min Mat Sto Rec Scr Fac Machines Disabled 8 | . . . . . 6 . 2 . Max in Single Turn 1 | . . . . . 1 . 1 . Garrison Access 1 | . . . . . 1 . . . Machines Repaired . | . . . . . . . . . Machines Dismantled . | . . . . . . . . . Machines Sabotaged . | . . . . . . . . . Overloaded Fab Kills . | . . . . . . . . . Hacking | -11 -10 -9 -9 -8 -8 -8 -8 -6 --------- Run | Yrd Mat Mat Min Mat Sto Rec Scr Fac Machines Accessed 11 | . . . . 1 3 3 2 2 Terminals 7 | . . . . 1 2 3 . 1 Fabricators 1 | . . . . . . . . 1 Repair Stations . | . . . . . . . . . Recycling Units . | . . . . . . . . . Scanalyzers . | . . . . . . . . . Garrison Access 1 | . . . . . 1 . . . Total Hacks 26 | . . . . 2 8 6 7 3 Successful 16 | . . . . 2 3 3 7 1 Failed 10 | . . . . . 5 3 . 2 Catastrophic 1 | . . . . . . 1 . . Database Lockouts . | . . . . . . . . . Manual 6 | . . . . . 5 1 . . Terminals 15 | . . . . 2 6 6 . 1 Fabricators 2 | . . . . . . . . 2 Repair Stations . | . . . . . . . . . Recycling Units . | . . . . . . . . . Scanalyzers . | . . . . . . . . . Garrison Access 2 | . . . . . 2 . . . Terminal Hacks 15 | . . . . 2 2 3 7 1 Record 1 | . . . . 1 . . . . Part Schematic 2 | . . . . . . 2 . . Robot Schematic 1 | . . . . . . 1 . . Robot Analysis 6 | . . . . . . . 6 . Prototype ID Bank 1 | . . . . . 1 . . . Open Door 1 | . . . . . 1 . . . Open DSF 1 | . . . . . . . . 1 Hauler Manifests 1 | . . . . 1 . . . . Proto ID Catalog 1 | . . . . . . . 1 . Fabricator Hacks . | . . . . . . . . . Repair Station Hacks . | . . . . . . . . . Recycling Unit Hacks . | . . . . . . . . . Scanalyzer . | . . . . . . . . . Garrison Access Hacks 1 | . . . . . 1 . . . Seal Access 1 | . . . . . 1 . . . Unauthorized Hacks . | . . . . . . . . . Terminals . | . . . . . . . . . Fabricators . | . . . . . . . . . Repair Stations . | . . . . . . . . . Recycling Units . | . . . . . . . . . Scanalyzers . | . . . . . . . . . Garrison Access . | . . . . . . . . . Data Cores Recovered 1 | . . . . 1 . . . . Used . | . . . . . . . . . Hacking Detections 7 | . . . . 1 1 3 . 2 Full Trace Events 1 | . . . . . 1 . . . Feedback Events . | . . . . . . . . . Feedback Blocked . | . . . . . . . . . Robot Schematics Acquired 1 | . . . . . . 1 . . Robots Built . | . . . . . . . . . Authchips . | . . . . . . . . . Time . | . . . . . . . . . Total Robot Build Rating . | . . . . . . . . . Part Schematics Acquired 2 | . . . . . . 2 . . Parts Built . | . . . . . . . . . Authchips . | . . . . . . . . . Time . | . . . . . . . . . Total Part Build Rating . | . . . . . . . . . Parts Repaired . | . . . . . . . . . Time . | . . . . . . . . . Parts Recycled . | . . . . . . . . . Recycled Matter . | . . . . . . . . . Retrieved Matter . | . . . . . . . . . Retrieved Components . | . . . . . . . . . Parts Scanalyzed . | . . . . . . . . . Part Schematics Acquired . | . . . . . . . . . Parts Damaged . | . . . . . . . . . Bothacking | -11 -10 -9 -9 -8 -8 -8 -8 -6 ------------ Run | Yrd Mat Mat Min Mat Sto Rec Scr Fac Used RIF Installer . | . . . . . . . . . Robots Hacked 3 | . . . . . . . 3 . Non-combat . | . . . . . . . . . Combat 3 | . . . . . . . 3 . Robot Hacks Applied 4 | . . . . . . . 4 . parse_system 4 | . . . . . . . 4 . Relay Couplers Released . | . . . . . . . . . Fabnet Peak Effective % . | . . . . . . . . . Robots Rewired . | . . . . . . . . . Allies Hacked . | . . . . . . . . . Hacks Repelled . | . . . . . . . . . Allies | -11 -10 -9 -9 -8 -8 -8 -8 -6 -------- Run | Yrd Mat Mat Min Mat Sto Rec Scr Fac Total Allies 10 | . . . . . 10 . . . Largest Group 10 | . . . . . 10 9 7 . Highest-Rated Group 173 | . . . . . 173 157 125 . Highest-Rated Ally 29 | . . . . . 29 29 29 . Total Orders . | . . . . . . . . . Ally Attacks 78 | . . . . . 36 3 39 . Total Damage 1024 | . . . . . 477 31 516 . Kills 12 | . . . . . 5 1 6 . Allies Corrupted . | . . . . . . . . . Allies Melted 4 | . . . . . . . 4 . Intel | -11 -10 -9 -9 -8 -8 -8 -8 -6 ------- Run | Yrd Mat Mat Min Mat Sto Rec Scr Fac Active Infowar (turns) 5384 | . . . . 109 2768 1276 1134 97 Terrain 97 | . . . . . . . . 97 T.N.C. 5287 | . . . . 109 2768 1276 1134 . Robot Analysis Total 6 | . . . . . . . 6 . Derelict Logs Recovered 1 | . . . 1 . . . . . Drone Launches . | . . . . . . . . . Drone Recoveries . | . . . . . . . . . Exploration | -11 -10 -9 -9 -8 -8 -8 -8 -6 ------------- Run | Yrd Mat Mat Min Mat Sto Rec Scr Fac Turns Passed 9033 | 66 400 124 408 472 2768 1276 3070 449 Spaces Moved 4623 | 41 183 52 200 172 1351 647 1516 461 Core 338 | 6 . . 129 66 . . . 137 Treads 4040 | 35 183 52 71 106 1351 647 1516 79 Legs . | . . . . . . . . . Wheels . | . . . . . . . . . Hover . | . . . . . . . . . Flight 245 | . . . . . . . . 245 Fastest Speed 32 | 50 160 160 50 160 160 170 155 32 Average Speed 159 | 143 160 160 175 190 168 170 169 70 Slowest Speed 300 | 160 160 160 250 300 170 170 170 170 Overloaded Moves 63 | . . . . . . . . 63 Propulsion Burnouts . | . . . . . . . . . Robots Hopped . | . . . . . . . . . Potential Cave-ins . | . . . . . . . . . Cave-ins Triggered . | . . . . . . . . . Exploration Rate (%) 43 | 3 33 10 42 21 92 99 79 12 Regions Visited 8 Branch Regions 4 Pre-discovered Areas 1 | . . . . . 1 . . . Known Exits Taken 5 | . . . 1 1 1 1 1 . Unknown Exits Taken 3 | 1 1 1 . . . . . . Scrap Searched 9 | . . . . . . . 9 . Spaces Dug 5 | . . . . 5 . . . . Terrain Destroyed 83 | . . . 47 30 . . 2 4 Melee . | . . . . . . . . . Projectile 2 | . . . . . . . 2 . AOE 81 | . . . 47 30 . . . 4 Terrain Rammed . | . . . . . . . . . Walls Destroyed . | . . . . . . . . . Machines Disabled . | . . . . . . . . . Actions | -11 -10 -9 -9 -8 -8 -8 -8 -6 --------- Run | Yrd Mat Mat Min Mat Sto Rec Scr Fac Total 5824 | 48 226 66 249 257 1730 797 1915 536 Wait 707 | . 4 . 36 . 254 123 290 . Move 4615 | 40 182 51 199 171 1350 646 1515 461 Hop . | . . . . . . . . . Pick Up 48 | 4 4 . 3 5 11 3 6 12 Fast Attach 10 | . . . . 4 3 . 3 . Attach 33 | 4 . . 3 7 2 . 2 15 Detach 4 | . . . . 1 . . 1 2 Swap 19 | . . . . . 9 . 10 . Drop 27 | . . . . . 18 2 6 1 Fire 352 | . 36 15 8 69 83 23 73 45 Melee 9 | . . . . . . . 9 . Ram . | . . . . . . . . . Kick . | . . . . . . . . . Crush . | . . . . . . . . . Escape Stasis . | . . . . . . . . . Rewire . | . . . . . . . . . Trap . | . . . . . . . . . Miscellaneous . | . . . . . . . . . Route ------- -11/Scrapyard -10/Materials -9/Materials -9/Mines (discovered 2 exits: *Mat x2) -8/Materials -8/Storage (discovered 2 exits: [*Fac] / *Rec) -8/Recycling (discovered 2 exits: *Fac / *Scr) -8/Scraptown (discovered 2 exits: *Fac x2) -6/Factory History --------- Turn | Location | Event 5 | -11/Scrapyard | Discovered new exit (range 15) 67 | -11/Scrapyard | Entered Materials 315 | -10/Materials | Build established: Mutant 373 | -10/Materials | Discovered new exit (range 8) 467 | -10/Materials | Entered another Materials area 467 | -9/Materials | Evolved 2 slots: Utility x2 569 | -9/Materials | Discovered new exit (range 14) 591 | -9/Materials | Entered Mines 661 | -9/Mines | Identified exit to Materials 740 | -9/Mines | Lost 3 parts (2n1w) 752 | -9/Mines | Joined a pair of Derelicts in attacking an 0b10 outpost 914 | -9/Mines | Discovered exit to Materials (range 13) 999 | -9/Mines | Entered Materials 999 | -8/Materials | Evolved 2 slots: Utility x2 1361 | -8/Materials | Discovered new exit (range 9) 1467 | -8/Materials | Identified exit to Storage 1471 | -8/Materials | Entered Storage 1664 | -8/Storage | Build established: Scavenger-Mutant 1678 | -8/Storage | Met 01-MTF 1875 | -8/Storage | Discovered new exit (range 16) 2196 | -8/Storage | Assisted by bots powering up and referring to "LRC-V3" 2494 | -8/Storage | Build established: Commander-Mutant 3333 | -8/Storage | Discovered new exit (range 4) 3893 | -8/Storage | Learned location of Armory (-3) 4211 | -8/Storage | Identified exit to Recycling 4239 | -8/Storage | Entered Recycling 4239 | -8/Recycling | Accompanied by 10 allies (01-MTF) 5046 | -8/Recycling | Discovered new exit (range 15) 5409 | -8/Recycling | Scanned before Scraplab entrance 5449 | -8/Recycling | Core integrity fell below 50% 5470 | -8/Recycling | Entered Scraplab 5480 | -8/Recycling | Lost 3 allies 5501 | -8/Recycling | Discovered new exit (range 2) 5501 | -8/Recycling | Identified exit to Scraptown 5515 | -8/Recycling | Entered Scraptown 5515 | -8/Scraptown | Accompanied by 7 allies 5886 | -8/Scraptown | Visited Cyclists 5912 | -8/Scraptown | Visited Comm Corps 5983 | -8/Scraptown | Visited Awakened 6029 | -8/Scraptown | Heard Great Nut preacher, LISTEN AND RECITE! 6046 | -8/Scraptown | Visited Cave Peace 6067 | -8/Scraptown | Visited IN-MT5's Study 6096 | -8/Scraptown | Visited Bundlers 6236 | -8/Scraptown | Visited UFD Registry 6236 | -8/Scraptown | Registered with UFD as "Nukeshell" 6284 | -8/Scraptown | Visited Science Guys 6347 | -8/Scraptown | Visited Analyses Database 6386 | -8/Scraptown | Visited Curators Association 6447 | -8/Scraptown | Visited LU-1G1's Boring Crew 6469 | -8/Scraptown | Visited Derelict Rescue Squad 6527 | -8/Scraptown | Visited Science Testing Area 6566 | -8/Scraptown | Visited Scrapoid Pod Storage 6607 | -8/Scraptown | Visited A0-MCA Data Center 6645 | -8/Scraptown | Given an A rating by A0-MCA 6648 | -8/Scraptown | Found A0-MCA's Component Scanner 7093 | -8/Scraptown | Discovered new exit (range 11) 7485 | -8/Scraptown | Met Optimus 7485 | -8/Scraptown | Accepted into 0bPrime 7782 | -8/Scraptown | Visited Cartography Club 7822 | -8/Scraptown | Found Surveybot 17 Chip 7863 | -8/Scraptown | Civil war broke out across Scraptown 8034 | -8/Scraptown | Lost 26 allies 8087 | -8/Scraptown | Lost 3 allies 8096 | -8/Scraptown | Identified exit to Factory 8247 | -8/Scraptown | Core integrity fell below 20% 8260 | -8/Scraptown | Lost 3 allies 8273 | -8/Scraptown | Build established: Hacker-Mutant 8374 | -8/Scraptown | Lost 3 allies 8585 | -8/Scraptown | Entered Factory 8585 | -6/Factory | Evolved 4 slots: Propulsion x2, Utility x2 8808 | -6/Factory | Core integrity fell below 50% 8826 | -6/Factory | Lost 9 parts (1p2n2u4w) 8953 | -6/Factory | Lost 3 parts (1p1n1w) 8991 | -6/Factory | Core integrity fell below 20% 9034 | -6/Factory | Destroyed by G-50 Soldier with Heavy Laser Last Messages --------------- A-15 Conveyor collects Mic. Fission Core. Penetrated by Slug. A-15 Conveyor collects Mic. Fission Core. Penetrated by Slug. Thermal Shield destroyed. Penetrated by Slug. Hvy. Laser destroyed. A-15 Conveyor collects Mic. Fission Core. Acquired Xenon Bombardment Thruster. Slug penetrates Wall. Slug penetrates Door. Slug penetrates Wall. Penetrated by Slug. K-01 Serf destroyed. Acquired 23 matter. Slug penetrates Wall. Penetrated by Slug. Xenon Bombardment Thruster destroyed. K-01 Serf collects debris. Acquired 15 matter. Map ----- +----------------------------------------------------+ | #??###??#?????##############?????????????????????? | | ##?###?#?#????# #?????????????????????? | | #######?#?????# #?????????????????????? | | #####??###????# #?????????????????????? | | #?#####?#?#???# #?????????????????????? | | ####?###?#????# #?????????????????????? | | ########?##???# #######???????????????? | | ####?###?##?### # #???????????????? | | ######## # # #???????????????? | | ######## #### + #???????????????? | | #?########### # #???????????# ??? | | #### # # #???????????# ?? | | #### # # #???????????# | | #### #########g #???????????# " | | #### ####### #???????????# " | | #### #######g #???????????# " | | #### ##?#?## # ??????????# | | #### ###??## #? ?????????# | | #### ##?#### # ??????????# | | #### #####?# # ????????# | | ##########+########## #####+########### | | = % | | * | | """ | | * ""F"" | | !% = = @ "" "" | | #################;### ########## | | #?## # << """""" #????????? | | #### # << """""" #????????? | | #### # << """""" #????????? | | #### # < """""" #????????? | | #### """ """ # #????????? | | #### """ """ # #????????? | | #### """ """ # #####+#########????????? | | #### "" "" # # ?????????????????????? | | #?## "" "? # #??????????????????????? | | #### # #? ??? ????????????????? | | #??# ???? ??# ???????????????????????? | | ##?# ???? ?? ???????????????????????? | | ###?#?#???????#####????? ???????????????????????? | | ###?#?????????????????? ???????????????????????? | | ?#?###??????????????????????????????????????????? | | ###?????????????????????????????????????????????? | | #####???????????????????????????????????????????? | | ###?????????????????????????????????????????????? | | [####????????????????????????????????????????????? | | ###?????????????????????????????????????????????? | | #??##???????????????????????????????????????????? | | ##?#?????????????????????????????????????????????? | | ##??#????????????????????????????????????????????? | +----------------------------------------------------+ Best States ------------- Heat Dissipation 58 Energy Generation 15 Energy Capacity 240 Matter Stores 500 Matter Capacity 500 Sight Range 16 Terrain Scan Range 16 Terrain Scan Density 1210 Armor Coverage 300 Resistance: TH 20 Weapon Shielding 66 Evasion (%) 63 Targeting Accuracy 10 Target Analysis 5 Recoil Reduction 2 Offensive Hacking 11 Defensive Hacking 10 Item Schematics ----------------- Plasma Cannon | -8/Recycling | Hacked Magnetic Acceleration Cannon | -8/Recycling | Hacked Robot Schematics ------------------ G-47 Trooper | -8/Recycling | Hacked Fabricated ------------ Nothing Repaired ---------- Nothing Alien Tech Used ----------------- None Achievements -------------- None Challenges ------------ None Game ------ Seed GrenadeLauncherArmor Manual? 0 Play Time 01:08:39 Cumulative 128.3 hours Start 2025.09.07 @ 08:03:14 End 2025.09.07 @ 09:47:38 Sessions 1 Manual Loads 0 Difficulty Rogue Special Mode None Game No. 449 Rogue 449 Adventurer 0 Explorer 0 Win Type - Total 0 Types 0/0/0/0/0/0/0/0/0/0 Lore% 51 Gallery% 47 Achievement% 34 Wizard Run 0 Options --------- Layout 2 ASCII 0 Keyboard 0 Movement Mouse Keybinds 0 Fullscreen 2 Font 24/Smallcaps Map View 50x44 Zoom Use 0% Tactical HUD 0 Map Filters NONE Filters NONE Steam 1 RUN: 6845c92d-0eca-45bd-ad79-72c64911769c